bitfinex/quotes_SOLUSD_20260115
["timestamp","ask_amount","ask_price","bid_price","bid_amount"]
[1768499529029,12.23036844,143.58,143.53,7.45399015]
[1768499529331,12.3281835,143.58,143.54,0.48691292]
[1768499529496,12.3281835,143.58,143.5,19.40103092]
[1768499529497,0.03,143.56,143.52,0.48691292]
[1768499529697,10.34921682,143.56,143.52,0.48691292]
[1768499530493,6.96598174,143.56,143.52,7.45448352]
[1768499530700,6.96598174,143.56,143.53,0.48691292]
[1768499531227,6.96541899,143.57,143.54,0.48691292]
[1768499531401,1.98,143.56,143.53,0.48691292]
[1768499531601,1.98,143.56,143.53,3.840148]
[1768499532022,8.94618708,143.56,143.53,0.48691292]
[1768499533923,1.98,143.56,143.54,0.48691292]
[1768499534106,8.9457545,143.56,143.54,0.48691292]
[1768499535329,1.92000001,143.56,143.54,0.48691292]
[1768499535623,6.96546757,143.57,143.55,0.48691292]
[1768499535925,1.90000001,143.57,143.55,0.48691292]
[1768499536110,1.96,143.58,143.55,0.48691292]
[1768499536922,8.92485874,143.58,143.55,0.48691292]
[1768499538314,6.96263877,143.63,143.58,0.48691292]
[1768499538515,6.96263877,143.63,143.6,0.48691292]
[1768499539028,10.34587385,143.63,143.56,0.48691292]
[1768499539220,6.99263877,143.63,143.58,3.840148]
[1768499539424,10.34587385,143.63,143.58,3.840148]
[1768499539620,10.34587385,143.63,143.58,0.48691292]
[1768499539926,5.31323508,143.62,143.58,0.48691292]
[1768499540118,6.96330339,143.61,143.58,0.48691292]
[1768499540330,10.31653847,143.61,143.57,0.48691292]
[1768499541227,6.96330339,143.61,143.57,0.48691292]
[1768499544528,6.96400215,143.6,143.57,0.48691292]
[1768499545431,1.96,143.6,143.58,0.49016382]
[1768499545813,1.96,143.62,143.58,0.49016382]
[1768499546533,6.96330339,143.61,143.58,0.49016382]
[1768499547627,1.96,143.62,143.58,0.49016382]
[1768499547834,8.92300146,143.62,143.59,0.49016382]
[1768499548211,6.96300146,143.62,143.59,0.49016382]
[1768499548436,6.96300146,143.62,143.59,3.8433989]
[1768499548914,6.96300146,143.62,143.6,0.49016382]
[1768499550732,6.96300146,143.62,143.58,0.49016382]
[1768499550911,27.75328291,143.62,143.58,0.49016382]
[1768499551111,3.35323508,143.61,143.58,0.49016382]
[1768499551936,27.75328291,143.62,143.58,0.49016382]
[1768499552120,24.40004783,143.62,143.58,0.49016382]
[1768499552430,27.75328291,143.62,143.58,0.49016382]
[1768499553134,24.40004783,143.62,143.58,0.49016382]
[1768499553339,3.8244091,143.6,143.53,17.41764437]
[1768499553637,3.8244091,143.6,143.55,10.31915317]
[1768499553638,2.41117402,143.6,143.55,10.31915317]
[1768499554835,1.94,143.6,143.56,3.35323508]
[1768499555141,1.94,143.6,143.56,10.31885406]
[1768499555142,8.90398601,143.6,143.56,10.31885406]
[1768499555437,8.90398601,143.6,143.56,10.80901788]
[1768499555634,8.90398601,143.6,143.57,0.49016382]
[1768499555822,6.96398601,143.6,143.57,0.49016382]
[1768499558950,9.37466617,143.61,143.57,0.49016382]
[1768499559116,7.43466617,143.61,143.57,0.49016382]
[1768499559524,12.72790125,143.61,143.57,0.49016382]
[1768499560116,10.78790125,143.61,143.57,0.49016382]
[1768499560316,8.90388267,143.6,143.57,0.49016382]
[1768499560517,6.96388267,143.6,143.57,0.49016382]
[1768499560818,8.90388267,143.6,143.57,0.49016382]
[1768499561014,0.47117402,143.57,143.53,0.49016382]
[1768499561231,5.7644091,143.57,143.53,0.49016382]
[1768499563019,12.72997248,143.57,143.53,0.49016382]
[1768499564046,9.3767374,143.57,143.54,0.49016382]
[1768499564554,9.3767374,143.57,143.53,0.49016382]
[1768499564922,12.72997248,143.57,143.53,0.49016382]
[1768499566146,12.72997248,143.57,143.51,0.49016382]
[1768499566147,0.47117402,143.56,143.51,0.49016382]
[1768499566351,0.47117402,143.56,143.42,56.19330174]
[1768499566352,0.47117402,143.51,143.48,1e-08]
[1768499566527,3.35323508,143.52,143.42,0.2]
[1768499566528,0.47117402,143.48,143.42,0.2]
[1768499566727,0.49999999,143.43,143.39,17.28771179]
[1768499566927,3.35323508,143.4,143.38,0.06084638]
[1768499567133,12.2672221,143.39,143.32,0.49016382]
[1768499567459,12.2672221,143.39,143.28,0.4469773]
[1768499567460,1.94,143.38,143.33,3.8433989]
[1768499567632,5.29323508,143.37,143.33,0.49016382]
[1768499568044,3.35323508,143.36,143.33,0.49016382]
[1768499568250,1.94,143.37,143.33,0.49016382]
[1768499568448,5.29323508,143.37,143.33,0.49016382]
[1768499569327,5.34408856,143.42,143.34,0.49016382]
[1768499569328,17.43269193,143.41,143.34,0.49016382]
[1768499569529,3.35323508,143.38,143.34,0.49016382]
[1768499569748,6.97301443,143.41,143.36,3.35323508]
[1768499569955,1.94,143.4,143.37,0.49016382]
[1768499571352,1.92,143.39,143.37,0.49016382]
[1768499571645,1.92,143.39,143.33,3.35323508]
[1768499571646,5.72780269,143.39,143.33,3.35323508]
[1768499571848,3.35323508,143.37,143.31,3.35323508]
[1768499572053,5.27323508,143.36,143.31,3.35323508]
[1768499572250,5.27323508,143.36,143.28,0.4469773]
[1768499572251,3.35323508,143.35,143.28,0.4469773]
[1768499572428,5.27323508,143.34,143.28,0.4469773]
[1768499572628,10.33182313,143.3,143.28,0.4469773]
[1768499572842,1.92,143.29,143.24,3.35323508]
[1768499573049,10.73846179,143.31,143.26,3.35323508]
[1768499573352,1.92,143.29,143.26,14.99319687]
[1768499573527,1.92,143.29,143.27,0.46030339]
[1768499574131,18.7517517,143.31,143.27,0.46030339]
[1768499574345,1.92,143.3,143.27,0.46030339]
[1768499575749,1.92,143.3,143.27,7.44005874]
[1768499576257,1.2958829,143.29,143.27,0.46030339]
[1768499577155,1.2958829,143.29,143.27,0.09703053]
[1768499577731,0.14931958,143.29,143.27,8.11032044]
[1768499578162,0.14931958,143.29,143.27,8.01328991]
[1768499578657,0.14931958,143.29,143.23,1.92]
[1768499578658,7.58275911,143.29,143.24,14.99444069]
[1768499579051,7.58275911,143.29,143.23,1.92]
[1768499579052,0.14931958,143.29,143.25,8.01328991]
[1768499579352,0.14931958,143.29,143.26,14.99351248]
[1768499579353,2.06931958,143.29,143.26,14.99351248]
[1768499579653,2.06931958,143.29,143.24,17.45239179]
[1768499579860,2.06931958,143.29,143.26,8.01328991]
[1768499580243,0.14931958,143.29,143.26,8.01328991]
[1768499580453,0.14931958,143.29,143.27,8.01328991]
[1768499580755,0.45456761,143.34,143.29,8.01328991]
[1768499580940,0.45456761,143.38,143.31,8.01328991]
[1768499581146,8.46785752,143.36,143.31,8.01328991]
[1768499581342,8.46785752,143.36,143.3,8.01328991]
[1768499581554,0.45456761,143.31,143.24,17.45239179]
[1768499581734,0.45456761,143.31,143.26,6.97996461]
[1768499581735,0.45456761,143.3,143.26,6.97996461]
[1768499582533,0.45456761,143.3,143.26,14.99325452]
[1768499583643,0.45456761,143.3,143.26,6.97996461]
[1768499584262,0.45456761,143.3,143.25,8.01328991]
[1768499584263,0.45456761,143.29,143.25,14.99393568]
[1768499584557,2.37456761,143.29,143.25,14.99393568]
[1768499585864,2.37456761,143.29,143.25,6.98064577]
[1768499586057,2.37456761,143.29,143.26,8.01328991]
[1768499586257,2.31456761,143.29,143.25,14.99393568]
[1768499586453,8.01328991,143.28,143.23,8.01328991]
[1768499586652,8.01328991,143.28,143.16,42.93906206]
[1768499586653,8.01328991,143.25,143.18,6.98388394]
[1768499586853,1.92,143.24,143.13,0.06]
[1768499587052,8.01328991,143.19,143.14,6.98573308]
[1768499587262,9.93328991,143.19,143.14,6.98573308]
[1768499587567,9.93328991,143.19,143.15,6.98558911]
[1768499587568,1.85999999,143.19,143.15,6.98558911]
[1768499587770,8.84373068,143.19,143.12,17.46743885]
[1768499587953,8.01328991,143.18,143.13,8.01328991]
[1768499588152,8.01328991,143.18,143.12,8.01328991]
[1768499588354,0.45456761,143.17,143.11,7.04763189]
[1768499588548,0.45456761,143.17,143.12,8.01328991]
[1768499588750,2.37456761,143.19,143.15,8.01328991]
[1768499589062,1.92,143.24,143.17,8.01328991]
[1768499589304,8.01328991,143.23,143.17,8.01328991]
[1768499589573,13.03787761,143.21,143.16,13.03787761]
[1768499589870,21.94094458,143.21,143.15,8.90539384]
[1768499590073,8.90306697,143.21,143.16,6.98518302]
[1768499590382,13.03787761,143.2,143.14,20.02389883]
[1768499590554,13.03787761,143.18,143.12,2.38030339]
[1768499590758,14.95787761,143.18,143.12,2.38030339]
[1768499590978,15.41244522,143.18,143.13,6.98626349]
[1768499591292,13.49244522,143.15,143.11,6.98753256]
[1768499591454,0.45456761,143.15,143.1,17.92941039]
[1768499591956,13.49244522,143.15,143.1,17.92941039]
[1768499592482,0.45456761,143.15,143.1,17.92941039]
[1768499592680,17.45968247,143.19,143.11,37.95489261]
[1768499592681,13.49244522,143.17,143.11,37.95489261]
[1768499592870,13.49244522,143.17,143.12,13.498181]
[1768499592871,2.35456761,143.17,143.12,13.498181]
[1768499593468,0.45456761,143.17,143.12,13.498181]
[1768499593666,0.45456761,143.17,143.12,0.46030339]
[1768499594052,0.45456761,143.17,143.13,6.98665548]
[1768499594679,7.43749053,143.21,143.15,13.498181]
[1768499594878,20.47536814,143.21,143.15,0.46030339]
[1768499595269,0.45456761,143.21,143.16,0.46030339]
[1768499595660,20.47521332,143.21,143.15,13.03787761]
[1768499595974,20.47521332,143.21,143.14,13.498181]
[1768499596174,0.45456761,143.2,143.15,6.98567935]
[1768499596370,13.49244522,143.19,143.14,6.98604952]
[1768499596571,13.49244522,143.18,143.14,6.98604952]
[1768499596879,13.03787761,143.17,143.14,6.6917985]
[1768499597459,13.03787761,143.17,143.12,0.46030339]
[1768499597460,13.49244522,143.17,143.12,0.46030339]
[1768499597661,1.9,143.18,143.1,0.46030339]
[1768499597662,13.49244522,143.15,143.1,0.46030339]
[1768499597859,13.49244522,143.14,143.08,0.46030339]
[1768499598056,13.49244522,143.14,143.07,6.98950749]
[1768499598057,13.49244522,143.11,143.07,6.98950749]
[1768499598265,13.43244516,143.11,143.07,6.98950749]
[1768499598666,0.45456761,143.11,143.07,6.98950749]
[1768499599177,13.49244522,143.11,143.07,6.98950749]
[1768499599661,13.38243735,143.11,143.07,6.98950749]
[1768499600857,1.9,143.11,143.08,0.47522725]
[1768499601058,13.03787761,143.14,143.08,0.47522725]
[1768499601271,13.03787761,143.14,143.08,14.93787761]
[1768499601471,14.93787761,143.15,143.09,0.47522725]
[1768499601680,15.40939118,143.15,143.09,0.47522725]
[1768499602466,13.03787761,143.14,143.1,6.98812019]
[1768499602660,13.50939118,143.12,143.09,6.98846624]
[1768499602982,13.50939118,143.11,143.07,6.98946423]
[1768499603291,14.93787761,143.12,143.07,17.9483344]
[1768499603579,13.50939118,143.11,143.07,17.47310715]
[1768499603776,13.03787761,143.1,143.06,1.9]
[1768499603970,0.47151357,143.1,143.06,1.9]
[1768499604173,0.47151357,143.1,143.06,19.37405367]
[1768499604382,0.47151357,143.1,143.06,17.47405367]
[1768499604883,0.47151357,143.1,143.06,6.99007409]
[1768499605067,0.49760865,143.09,143.06,6.99007409]
[1768499605469,0.49760865,143.09,143.03,17.47564371]
[1768499605470,15.43548626,143.09,143.03,17.47564371]
[1768499605681,13.53548626,143.1,143.05,24.46685981]
[1768499605876,13.53548626,143.1,143.05,24.95689182]
[1768499606178,2.39760865,143.1,143.05,24.95689182]
[1768499606486,0.49760865,143.1,143.05,24.46685981]
[1768499606863,13.53548626,143.1,143.05,24.46685981]
[1768499607361,13.53548626,143.09,143.05,6.99045296]
[1768499607568,0.49760865,143.08,143.05,6.99045296]
[1768499607764,0.49760865,143.08,143.04,6.99086851]
[1768499607972,0.49760865,143.07,143.04,6.99086851]
[1768499608163,0.49760865,143.09,143.04,24.46849714]
[1768499608363,2.39760865,143.11,143.06,13.03787761]
[1768499608662,1.9,143.16,143.09,0.49003201]
[1768499608864,13.03787761,143.15,143.1,6.98812019]
[1768499609275,13.03787761,143.15,142.99,7.09342079]
[1768499609276,41.91412249,143.15,142.99,7.09342079]
[1768499609484,5.34408856,143.11,142.99,0.1]
[1768499609766,3.51963105,142.98,142.95,0.49003201]
[1768499610794,16.55750866,142.98,142.95,0.49003201]
[1768499610965,23.55149479,142.98,142.95,0.49003201]
[1768499611363,23.55149479,142.98,142.93,7.44900989]
[1768499611667,13.03787761,142.96,142.91,0.45301995]
[1768499611866,14.93787761,142.96,142.91,0.45301995]
[1768499612094,13.03787761,142.95,142.91,0.45301995]
[1768499612287,1.9,142.96,142.91,0.45301995]
[1768499612288,13.03787761,142.94,142.91,0.45301995]
[1768499612786,1.9,142.93,142.89,0.45301995]
[1768499613567,21.93436231,142.93,142.89,0.45301995]
[1768499613788,8.8964847,142.93,142.86,0.45301995]
[1768499614301,13.03787761,142.9,142.86,0.45301995]
[1768499614497,1.88,142.92,142.86,0.45301995]
[1768499614875,6.99618216,142.94,142.86,0.45301995]
[1768499615083,1.88,142.93,142.89,0.45301995]
[1768499615389,1.88,142.93,142.88,0.45301995]
[1768499615580,1.88,142.93,142.89,0.45301995]
[1768499615983,6.99390459,142.99,142.92,0.45301995]
[1768499616282,14.91787761,143.01,142.95,0.45301995]
[1768499616481,13.03787761,143.01,142.95,0.45301995]
[1768499616688,14.91787761,143.0,142.95,0.45301995]
[1768499616878,13.03787761,142.99,142.95,0.45301995]
[1768499617473,21.91089579,143.0,142.95,0.45301995]
[1768499617785,14.91787761,143.0,142.95,0.45301995]
[1768499618488,6.99202908,143.02,142.95,7.44846256]
[1768499618726,6.99158569,143.03,142.97,13.03787761]
[1768499618991,13.03787761,143.03,142.98,0.45301995]
[1768499619175,1.88,143.03,142.99,0.45301995]
[1768499619370,1.88,143.04,142.99,0.45301995]
[1768499619676,14.91787761,143.04,142.99,0.45301995]
[1768499619996,1.88,143.04,142.99,0.42301995]
[1768499620208,1.88,143.03,142.99,0.42301995]
[1768499620570,14.91787761,143.03,142.99,0.42301995]
[1768499620772,1.88,143.03,142.99,0.42301995]
[1768499621808,1.88,143.03,142.99,20.45426648]
[1768499621998,1.88,143.03,142.98,20.48475244]
[1768499622181,1.88,143.03,142.99,0.45301995]
[1768499622498,13.03787761,143.0,142.94,2.33301995]
[1768499622699,11.50915878,143.05,142.92,5.34408856]
[1768499622700,13.09836715,142.98,142.92,13.49089756]
[1768499622877,13.03787761,142.97,142.92,7.44980155]
[1768499623091,20.03251997,142.97,142.92,7.44980155]
[1768499623297,13.03787761,142.97,142.92,7.44980155]
[1768499623715,8.93458923,142.98,142.92,7.44980155]
[1768499623918,13.03787761,142.98,142.93,0.45301995]
[1768499624222,14.91787761,142.97,142.93,0.45301995]
[1768499624525,13.03787761,142.95,142.91,7.45042735]
[1768499624731,1.94768172,142.97,142.91,0.45301995]
[1768499625025,6.99545295,142.95,142.89,7.45141032]
[1768499625320,14.91787761,142.94,142.89,7.45141032]
[1768499625526,20.03300891,142.96,142.91,0.45301995]
[1768499625732,1.88,142.95,142.91,0.45301995]
[1768499626096,14.91787761,142.95,142.91,0.45301995]
[1768499626293,14.91787761,142.95,142.89,0.45301995]
[1768499626294,13.03787761,142.94,142.89,0.45301995]
[1768499626522,13.03787761,142.93,142.89,0.45301995]
[1768499626699,13.03787761,142.93,142.89,0.23851096]
[1768499627131,20.03410027,142.94,142.89,7.23676432]
[1768499627504,6.99622266,142.94,142.89,0.23851096]
[1768499627704,13.03787761,142.92,142.87,8.87934073]
[1768499627911,14.91787761,142.92,142.87,1.88]
[1768499628115,1.88,142.92,142.87,1.88]
[1768499628421,1.88,142.92,142.87,14.91787761]
[1768499628619,14.91787761,142.92,142.87,1.88]
[1768499628796,0.29555827,142.91,142.86,0.45301995]
[1768499629117,1.88,142.91,142.88,0.45301995]
[1768499629307,1.88,142.91,142.88,7.45144137]
[1768499629499,1.88,142.92,142.89,0.45301995]
[1768499630404,7.29814967,142.94,142.88,0.45301995]
[1768499630715,13.03787761,142.92,142.88,0.45301995]
[1768499631220,14.91787761,142.92,142.88,7.45185567]
[1768499631522,13.03787761,142.92,142.88,7.45185567]
[1768499631906,13.03787761,142.9,142.86,0.48734102]
[1768499633211,26.68064069,142.92,142.86,0.48734102]
[1768499633212,19.68364846,142.92,142.86,0.48734102]
[1768499633414,13.03787761,142.9,142.86,0.48734102]
[1768499633623,13.03787761,142.88,142.83,0.48734102]
[1768499633835,0.31450318,142.88,142.83,0.48734102]
[1768499634126,13.03787761,142.86,142.83,0.48734102]
[1768499634523,1.88,142.89,142.85,0.48734102]
[1768499634724,1.88,142.89,142.85,7.48730054]
[1768499635043,1.88,142.89,142.85,0.48734102]
[1768499635044,14.91787761,142.89,142.85,0.48734102]
[1768499635205,21.91649365,142.89,142.85,0.48734102]
[1768499635406,13.03787761,142.88,142.85,0.48734102]
[1768499635638,13.03787761,142.88,142.83,7.00120363]
[1768499635639,26.69530294,142.89,142.82,9.3689883]
[1768499635836,26.69530294,142.89,142.83,7.4886253]
[1768499636007,13.03787761,142.87,142.83,0.48734102]
[1768499636641,26.69530294,142.89,142.83,0.48734102]
[1768499636837,13.03787761,142.87,142.84,0.48734102]
[1768499637304,26.69530294,142.89,142.84,0.48734102]
[1768499637501,1.86,142.89,142.85,0.48734102]
[1768499637735,1.86,142.89,142.85,13.52521863]
[1768499637911,21.89594563,142.9,142.85,13.52521863]
[1768499638109,21.89594563,142.9,142.85,0.48734102]
[1768499638733,8.85806802,142.9,142.85,13.52521863]
[1768499638922,8.85806802,142.9,142.85,20.52542783]
[1768499639118,8.85806802,142.9,142.85,7.48755022]
[1768499639515,8.85806802,142.9,142.85,20.52542783]
[1768499639833,8.85806802,142.9,142.85,7.48755022]
[1768499640210,8.85806802,142.9,142.85,0.48734102]
[1768499640426,26.35281959,142.9,142.85,13.52521863]
[1768499640630,6.99806802,142.9,142.86,13.52521863]
[1768499640828,6.99806802,142.9,142.86,0.48734102]
[1768499641011,8.85806802,142.9,142.86,0.48734102]
[1768499641621,0.33849653,142.88,142.82,2.34734102]
[1768499641821,1.86,142.87,142.82,22.38693592]
[1768499642034,1.86,142.87,142.83,0.48734102]
[1768499642230,8.85943881,142.87,142.83,7.48865736]
[1768499642425,13.03787761,142.86,142.81,0.48734102]
[1768499642621,0.34134276,142.86,142.79,0.48734102]
[1768499642827,13.03787761,142.84,142.79,0.48734102]
[1768499643024,1.86,142.84,142.79,12.52521863]
[1768499643230,14.89787761,142.84,142.78,7.00340344]
[1768499643526,2.38874203,142.84,142.79,7.00321368]
[1768499643707,15.42661964,142.84,142.76,19.37150324]
[1768499643909,15.42661964,142.84,142.77,7.00411594]
[1768499643910,13.56661964,142.83,142.77,7.00411594]
[1768499644106,0.52874203,142.83,142.77,7.00411594]
[1768499644323,1.86,142.84,142.78,13.03787761]
[1768499644637,0.52874203,142.82,142.76,7.00468701]
[1768499644818,15.42661964,142.84,142.78,13.03787761]
[1768499645019,2.38874203,142.84,142.77,0.48734102]
[1768499645241,13.56661964,142.82,142.77,0.48734102]
[1768499645538,13.56661964,142.82,142.76,21.90256462]
[1768499645539,13.56661964,142.81,142.76,1.86]
[1768499645733,13.03787761,142.82,142.77,0.48734102]
[1768499646035,0.52874203,142.83,142.78,0.48734102]
[1768499646036,13.56661964,142.83,142.78,0.48734102]
[1768499646240,0.52874203,142.88,142.8,0.48734102]
[1768499646414,0.52874203,142.88,142.82,0.48734102]
[1768499646736,0.52874203,142.88,142.82,13.52521863]
[1768499646914,13.56661964,142.88,142.82,13.52521863]
[1768499647118,0.52874203,142.88,142.82,0.48734102]
[1768499647334,20.56586556,142.88,142.82,7.48911009]
[1768499647539,20.56586556,142.88,142.82,20.5269877]
[1768499648223,7.52798795,142.88,142.82,20.5269877]
[1768499648532,20.56586556,142.88,142.82,20.5269877]
[1768499648725,6.99924592,142.88,142.84,0.48734102]
[1768499648934,20.03637693,142.89,142.85,0.48734102]
[1768499649128,13.03787761,142.88,142.83,0.48734102]
[1768499649331,0.52874203,142.86,142.81,13.52521863]
[1768499649653,13.56661964,142.86,142.81,0.48734102]
[1768499649836,0.52874203,142.86,142.81,0.48734102]
[1768499650023,13.56661964,142.84,142.79,0.48734102]
[1768499650218,2.38874203,142.83,142.78,0.48734102]
[1768499650437,1.86,142.83,142.78,0.48734102]
[1768499650639,15.42661964,142.83,142.78,0.48734102]
[1768499650938,15.42661964,142.83,142.79,0.48734102]
[1768499650939,1.86,142.83,142.79,0.48734102]
[1768499651124,21.89912538,142.84,142.79,13.52521863]
[1768499651324,17.45669884,142.84,142.79,0.48734102]
[1768499651531,17.45669884,142.84,142.78,15.55764164]
[1768499652440,2.38874203,142.84,142.79,15.55705318]
[1768499652629,2.38874203,142.84,142.8,0.48734102]
[1768499652630,8.8610164,142.84,142.8,0.48734102]
[1768499652830,7.0010164,142.84,142.8,0.48734102]
[1768499653645,0.52874203,142.87,142.81,8.55405006]
[1768499653825,14.56316056,142.86,142.81,8.55405006]
[1768499654025,8.06670904,142.86,142.81,8.55405006]
[1768499654226,4.64379835,142.85,142.81,8.55405006]
[1768499654538,4.64379835,142.85,142.82,0.48734102]
[1768499654917,7.00000014,142.86,142.82,0.48734102]
[1768499655116,4.64546019,142.85,142.82,8.55405006]
[1768499655622,4.0770853,142.85,142.83,0.48734102]
[1768499655822,2.36874203,142.88,142.83,8.55405006]
[1768499656038,6.9985761,142.89,142.85,8.06670904]
[1768499656238,9.36670666,142.9,142.85,8.06670904]
[1768499656444,9.36670666,142.9,142.85,15.5541024]
[1768499656632,6.99745463,142.91,142.87,8.06670904]
[1768499656863,0.52874203,142.95,142.86,1.84]
[1768499657038,8.59545107,142.95,142.86,1.84]
[1768499657237,0.52874203,142.94,142.89,8.06670904]
[1768499657432,0.52874203,142.94,142.86,1.84]
[1768499657632,0.52874203,142.93,142.86,1.84]
[1768499657838,0.52874203,142.93,142.88,8.06670904]
[1768499658050,6.99594235,142.94,142.9,8.06670904]
[1768499658523,0.52874203,142.95,142.91,8.06670904]
[1768499658728,0.52874203,142.96,142.91,8.06670904]
[1768499658941,8.59545107,142.96,142.91,8.06670904]
[1768499659350,0.52874203,142.96,142.91,8.06670904]
[1768499659661,15.06137672,142.97,142.84,39.80332351]
[1768499659662,0.52874203,142.94,142.88,0.37566306]
[1768499659836,0.52874203,142.96,142.91,8.06670904]
[1768499660246,0.52874203,142.96,142.9,9.21355305]
[1768499660455,0.52874203,142.98,142.93,8.44660959]
[1768499660658,0.52874203,142.98,142.94,6.99594235]
[1768499660861,9.40449016,143.0,142.95,8.06670904]
[1768499661162,0.5713684,142.97,142.93,1.84]
[1768499661535,0.5713684,142.97,142.92,8.46448548]
[1768499661741,8.63807744,142.97,142.92,2.23777644]
[1768499661936,0.5713684,142.97,142.92,2.23777644]
[1768499662140,0.5713684,142.97,142.92,10.30448548]
[1768499662663,7.56601782,142.97,142.92,10.30448548]
[1768499662851,7.56601782,142.97,142.93,8.06670904]
[1768499663745,15.63272686,142.97,142.92,10.30448548]
[1768499664159,15.63272686,142.97,142.92,2.23777644]
[1768499664668,7.56601782,142.97,142.92,10.30448548]
[1768499664846,7.56601782,142.97,142.92,2.23777644]
[1768499665163,0.56450632,142.96,142.92,1.84]
[1768499665374,32.54754437,142.97,142.92,1.84]
[1768499665665,25.04534165,142.97,142.92,1.84]
[1768499666041,33.11205069,142.97,142.92,1.84]
[1768499666344,8.63121536,142.96,142.91,0.45028826]
[1768499666957,0.56450632,142.94,142.87,0.47045827]
[1768499667170,0.56450632,142.92,142.88,1.84]
[1768499667463,8.63121536,142.94,142.89,0.47045827]
[1768499667649,0.56450632,142.94,142.89,8.53716731]
[1768499669048,0.56450632,142.91,142.84,0.49016761]
[1768499669253,0.56450632,142.91,142.79,34.79492741]
[1768499669254,8.63121536,142.88,142.82,10.39687665]
[1768499669464,0.56450632,142.88,142.82,10.39687665]
[1768499670340,1.84,142.89,142.84,8.56656186]
[1768499670559,1.84,142.89,142.85,8.06670904]
[1768499670863,1.84,142.89,142.84,8.56656186]
[1768499671043,6.99888017,142.88,142.84,0.49985282]
[1768499671244,6.99888017,142.88,142.84,8.56656186]
[1768499671869,6.99888017,142.88,142.84,7.50068372]
[1768499672049,6.99888017,142.88,142.84,15.56739276]
[1768499672656,0.56450632,142.92,142.86,8.58559982]
[1768499672859,8.63121536,142.92,142.86,8.58559982]
[1768499673066,0.56450632,142.9,142.85,1.84]
[1768499673243,0.56450632,142.89,142.83,7.52925223]
[1768499673440,0.56450632,142.89,142.84,0.52824607]
[1768499673660,0.56450632,142.89,142.85,7.00005281]
[1768499673862,26.89544466,142.91,142.85,7.00005281]
[1768499674071,8.06670904,142.9,142.85,7.00005281]
[1768499674252,34.9621537,142.91,142.85,15.06676185]
[1768499674457,26.89544466,142.91,142.85,7.53754672]
[1768499674658,34.9621537,142.91,142.85,7.53754672]
[1768499674861,26.89544466,142.91,142.85,15.60425576]
[1768499675171,15.62783062,142.93,142.88,6.99888017]
[1768499676251,18.05373761,142.95,142.88,7.55455232]
[1768499676456,8.06670904,142.94,142.89,0.55567215]
[1768499677241,6.99643181,142.93,142.89,0.55567215]
[1768499677460,0.56450632,142.92,142.87,1.82]
[1768499677680,8.63121536,142.91,142.84,0.56460497]
[1768499677847,8.63121536,142.9,142.85,1.82]
[1768499678658,2.38450632,142.92,142.86,6.99967937]
[1768499678859,0.56450632,142.91,142.85,8.64887303]
[1768499679171,0.56450632,142.88,142.84,1.82]
[1768499679392,6.99895671,142.88,142.84,1.82]
[1768499679752,6.99895671,142.88,142.84,9.40292219]
[1768499680576,0.56450632,142.9,142.85,8.06670904]
[1768499680778,0.56450632,142.94,142.88,0.59079253]
[1768499680949,8.63121536,142.94,142.88,0.59079253]
[1768499681478,8.63121536,142.94,142.88,7.58923218]
[1768499681479,15.62737532,142.94,142.88,7.58923218]
[1768499682177,7.56066628,142.94,142.88,7.58923218]
[1768499682380,15.62737532,142.94,142.88,7.58923218]
[1768499682594,15.62737532,142.94,142.88,15.65594122]
[1768499682873,15.62737532,142.94,142.88,7.58923218]
[1768499682874,7.56066628,142.94,142.88,7.58923218]
[1768499683074,7.56066628,142.94,142.88,15.65594122]
[1768499683281,15.62737532,142.94,142.88,15.65594122]
[1768499683780,7.56066628,142.94,142.88,15.65594122]
[1768499683987,15.62737532,142.94,142.88,15.65594122]
[1768499684285,15.62737532,142.94,142.88,7.58923218]
[1768499684581,15.62737532,142.94,142.88,15.65594122]
[1768499684882,7.56066628,142.94,142.89,0.60949472]
[1768499685078,6.99615996,142.94,142.9,0.60949472]
[1768499685380,26.11552661,142.99,142.93,0.60949472]
[1768499685766,7.55820364,142.99,142.94,0.60949472]
[1768499686098,15.62491268,142.99,142.94,0.60949472]
[1768499686258,8.63121536,142.98,142.93,1.82]
[1768499686463,8.63121536,142.97,142.93,1.82]
[1768499687092,1.82,143.0,142.91,8.67620376]
[1768499687093,15.62617898,142.96,142.91,2.42949472]
[1768499687393,0.56450632,142.95,142.91,1.82]
[1768499687579,8.06670904,142.95,142.91,1.82]
[1768499687780,15.62617898,142.96,142.91,1.82]
[1768499688381,0.56450632,142.95,142.91,1.82]
[1768499688862,0.56450632,142.94,142.89,1.82]
[1768499689066,6.99643181,142.93,142.89,1.82]
[1768499689279,6.99643181,142.93,142.88,8.67620376]
[1768499689483,6.99643181,142.93,142.89,0.60949472]
[1768499689666,6.99643181,142.93,142.89,8.67620376]
[1768499690578,6.99643181,142.93,142.89,0.60949472]
[1768499690781,6.99643181,142.93,142.86,17.49920123]